[Event "Israeli Women Championship 2022"]
[Site "Yosiah Arad"]
[Date "2022.12.07"]
[Round "3.5"]
[White "Tashkinova, Sofiia"]
[Black "Reprun, Nadejda"]
[Result "1-0"]
[ECO "B11"]
[WhiteElo "2006"]
[BlackElo "1979"]
[Annotator "TA"]
[PlyCount "89"]
[EventDate "2022.12.05"]
[EventType "tourn"]
[EventCountry "ISR"]
[SourceTitle "playchess.com"]
[Source "ChessBase"]
[SourceQuality "1"]
[TimeControl "40/5400+30:1800+30"]

{[%evp 9,89,0,56,54,48,50,68,15,17,-1,-8,-8,-4,-6,14,12,8,12,15,10,12,0,-10,-25,0,0,0,0,0,0,155,73,63,87,107,54,133,0,112,114,276,129,212,216,218,210,200,82,116,103,97,72,233,0,1,0,374,311,357,348,260,41,29,38,25,31,33,8,5808,3544,1775,5637,5077,5065,2393,2009,29988,29973,29972,29973,29973,29975]} 1. e4 {[%emt 0:00:03][%cal Be2e4,Be4e5][%mdl 32]} c6 {[%emt 0:00:02]} 2. Nf3 {[%emt 0:00:08]} d5 {[%emt 0:00:05]} 3. Nc3 {[%emt 0:00:25]} Nf6 {[%emt 0:01:00][%cal Bg8f6,Bf6e4,Be4c5,Bc5d7,Bd7b6,Bb6c4][%mdl 32]} 4. e5 {[%emt 0:00:20]} Ne4 {[%emt 0:00:09]} 5. Ne2 {[%emt 0:00:16]} e6 {[%emt 0:00:34]} (5... Qb6 $1 $11 6. d4 e6) 6. d3 $14 {[%emt 0:01:40] B11: Caro-Kann: Two Knights Variation.} Nc5 {[%emt 0:04:51] [#]} 7. c3 $146 {[%emt 0:02:36]} ({Predecessor:} 7. Ng3 b6 8. d4 Ncd7 9. Bg5 Be7 10. h4 Ba6 11. Nh5 g6 12. Nf4 h6 13. Bxe7 Qxe7 {½-½ (93) Naiditsch,A (2682)-Granda Zuniga,J (2667) Douglas 2015}) 7... Be7 {[%emt 0:01:32]} 8. b4 {[%emt 0:03:40]} ({White should try} 8. h4 $14) 8... Ncd7 $11 {[%emt 0:00:43]} 9. d4 {[%emt 0:00:53]} a5 {[%emt 0:02:53]} 10. Bd2 {[%emt 0:02:26]} axb4 {[%emt 0:07:25]} 11. cxb4 {[%emt 0:01:18]} b5 {[%emt 0:04:21]} 12. Nf4 {[%emt 0:03:26]} Nb6 {[%emt 0:01:42]} 13. Bd3 {[%emt 0:08:39]} Nc4 {[%emt 0:06:00]} 14. O-O {[%emt 0:07:43]} Nd7 {[%emt 0:04:42]} 15. Nh5 {[%emt 0:06:12]} (15. Bc2 {simplifies} O-O 16. Nd3 Nxd2 17. Qxd2 Ra3 18. Qc1) 15... O-O {[%emt 0:03:17]} 16. Qc2 {[%emt 0:02:39]} (16. Nf4 {simplifies} Ndb6 17. Bc2 Nxd2 18. Qxd2 Ra3 19. Nd3) 16... Nxd2 {[%emt 0:04:13]} (16... g6 $5 {[%cal Rg6h5]} 17. Bxc4 dxc4 $11) 17. Bxh7+ {[%emt 0:03:27]} (17. Nxd2 g6 18. Nf4 (18. Qxc6 Ra6 $17) 18... Bxb4 $17) 17... Kh8 {[%emt 0:00:03]} 18. Nxd2 {[%emt 0:00:09]} Bxb4 {[%emt 0:02:37]} 19. Nf3 {[%emt 0:01:45]} Nb6 $2 {[%emt 0:01:21]} (19... g6 20. Bxg6 $1 fxg6 21. Qxg6 $18) (19... c5 $11) 20. Rab1 {[%emt 0:03:32]} ({Better is} 20. Bd3 $1) 20... Be7 $16 {[%emt 0:02:33]} 21. Rb3 {[%emt 0:01:03]} Nc4 {[%emt 0:03:33]} 22. Bd3 {[%emt 0:04:04]} (22. Ne1 $1 $16) 22... b4 {[%emt 0:07:40]} ({Black should play} 22... Na5 $1 $14) 23. Nd2 {[%emt 0:06:56]} ({White must play} 23. Qc1 $1 $16 {[%cal Rc1f4]}) 23... Nxd2 {[%emt 0:07:23]} (23... Na5 $1 $11) 24. Qxd2 {[%emt 0:00:24]} Ra3 $2 {[%emt 0:00:29]} (24... Bh4 $16) 25. Qe2 {[%emt 0:01:40]} (25. Rxa3 $18 bxa3 26. Qe3) 25... Rxb3 {[%emt 0:01:44]} (25... g6 $16 {was necessary.}) 26. Qg4 $18 {[%emt 0:05:47][%csl Gh5][%cal Rg4g7]} Bg5 {[%emt 0:01:50]} 27. axb3 {[%emt 0:04:59]} Bh6 {[%emt 0:05:10]} 28. h4 {[%emt 0:05:31] Against Qg5} (28. Qh3 $1 $18 {and White stays clearly on top.}) 28... c5 {[%emt 0:06:44]} 29. dxc5 {[%emt 0:01:30]} Qc7 {[%emt 0:00:26][%csl LRc5,LRe5]} 30. Qd4 {[%emt 0:04:37] White has more active pieces.} Bd7 $2 {[%emt 0:01:51]} (30... Bd2 $16 {might work better.}) 31. g4 $2 {[%emt 0:00:32]} (31. Qxb4 Rb8 32. Qc3 Qd8) (31. Be2 $18) 31... Bd2 $11 {[%emt 0:01:51]} 32. g5 {[%emt 0:03:25] And now Rd1 would win.} (32. Bb1 $5 Bc3 $8 33. Qd3 $11) 32... Bc3 $2 {[%emt 0:00:37][%mdl 8192]} (32... Rd8 $1 $11 {and Black has nothing to worry.}) 33. Qg4 $1 $18 {[%emt 0:00:10][%cal Oh5f6] Strongly threatening Nf6!} Bxe5 {[%emt 0:04:52] [#]} (33... Qxc5 $2 34. Nf6 $1 {[%mdl 512]} g6 35. Nxd7 $18) 34. Nf6 {[%emt 0:01:14][%cal Rg4h5][%mdl 512]} g6 {[%emt 0:00:08] [#] Inhibits Qh5+.} 35. Nxd7 $2 {[%emt 0:01:22]} ({Not} 35. Qxb4 Rc8 $16) (35. Re1 $1 $18 {[%cal Re1e5]} Be8 36. h5 (36. Qxb4 Bxf6 37. gxf6 e5 $18) 36... Bxf6 37. gxf6) 35... Qxd7 $14 {[%emt 0:00:57]} 36. h5 $40 {[%emt 0:00:33][%mdl 128] Black needs to defend precisely.} Kg7 {[%emt 0:01:08]} 37. hxg6 {[%emt 0:01:49]} fxg6 {[%emt 0:00:14]} 38. Re1 {[%emt 0:00:43]} (38. f4 $5 {[%cal Rf4e5]} Bc3 39. Kg2 $14) 38... Rf5 {[%emt 0:08:35][%mdl 8192]} 39. Bxf5 $18 {[%emt 0:00:29]} gxf5 {[%emt 0:00:18][%mdl 4096] Endgame KQR-KQB} 40. Qh4 {[%emt 0:01:36]} Bc3 {[%emt 0:01:26]} 41. Qh6+ {[%emt 0:30:12]} Kf7 {[%emt 0:30:39]} 42. g6+ {[%emt 0:01:01]} Kg8 {[%emt 0:01:34]} 43. Qh7+ {[%emt 0:00:11] White mates.} Qxh7 {[%emt 0:00:06]} 44. gxh7+ {[%emt 0:00:04]} Kxh7 {[%emt 0:00:10]} 45. Rxe6 {[%emt 0:00:07] Weighted Error Value: White=0.38/Black=0.55} 1-0

[Event "Israeli Women Championship 2022"]
[Site "Yosiah Arad"]
[Date "2022.12.08"]
[Round "4.1"]
[White "Efroimski, Marsel"]
[Black "Ovechkin, Lilia"]
[Result "*"]
[ECO "A45"]
[WhiteElo "2470"]
[BlackElo "1680"]
[Annotator "TA"]
[PlyCount "44"]
[EventDate "2022.12.05"]
[EventType "tourn"]
[EventCountry "ISR"]
[SourceTitle "playchess.com"]
[Source "ChessBase"]
[SourceQuality "1"]
[TimeControl "40/5400+30:1800+30"]

{[%evp 9,31,4,21,23,23,17,15,17,27,19,37,13,22,-54,2,-43,-37,-34,-23,-23,-37,-40,-48,-70]} 1. d4 {[%emt 0:00:27]} Nf6 {[%emt 0:00:03]} 2. Bg5 {[%emt 0:03:16]} Ne4 {[%emt 0:00:10]} 3. Bf4 {[%emt 0:00:24]} d5 {[%emt 0:00:04]} 4. e3 {[%emt 0:01:08]} c5 {[%emt 0:00:04]} 5. Bd3 {[%emt 0:00:23]} Nf6 {[%emt 0:00:03]} (5... cxd4 {simplifies} 6. Bxe4 dxe4 7. Qxd4 Qxd4 8. exd4 Nc6) 6. c3 {[%emt 0:00:40] A45: Trompowsky Attack.} Nc6 {[%emt 0:00:04]} 7. Nf3 {[%emt 0:02:38]} Bg4 {[%emt 0:00:44]} 8. Nbd2 {[%emt 0:01:47] The position is equal.} (8. dxc5 $2 {too greedy.} e5 9. Bg5 e4 10. Bxe4 dxe4 11. Qxd8+ Kxd8 $19) 8... e6 {[%emt 0:00:04]} 9. O-O {[%emt 0:00:48]} Be7 {[%emt 0:00:03]} 10. Rc1 {[%emt 0:08:46]} O-O {[%emt 0:01:12]} 11. b3 {[%emt 0:04:44]} ({White should play} 11. h3 $11 Bh5 12. g4) 11... Rc8 {[%emt 0:03:36]} (11... Nh5 $15 12. Bg3 Nxg3 13. fxg3 Bd6) 12. Qe1 {[%emt 0:09:07]} (12. h3 $5 {[%cal Rh3g4]} Bh5 13. Qe2 $11) 12... Nh5 {[%emt 0:04:31]} 13. Ne5 {[%emt 0:07:39]} Nxf4 {[%emt 0:00:29]} 14. exf4 {[%emt 0:00:20]} Bh5 {[%emt 0:03:13]} 15. Nxc6 {[%emt 0:06:13]} Rxc6 {[%emt 0:00:24]} 16. Qe5 {[%emt 0:00:34] [#]   Weighted Error Value: White=0.17 (very precise) /Black=0.13 (very precise)} {Predecessor:} Bg6 $146 17. Bxg6 hxg6 18. Nf3 Qc7 19. Qxc7 Rxc7 20. Rfd1 Rfc8 21. Rd3 c4 22. bxc4 Rxc4 {0-1 (45) Ovechkin,L (1680)-Efroimski,M (2470) Arad 2022} *

[Event "Israeli Women Championship 2022"]
[Site "Yosiah Arad"]
[Date "2022.12.08"]
[Round "4.1"]
[White "Ovechkin, Lilia"]
[Black "Efroimski, Marsel"]
[Result "0-1"]
[ECO "A45"]
[WhiteElo "1680"]
[BlackElo "2470"]
[Annotator "TA"]
[PlyCount "90"]
[EventDate "2022.12.05"]
[EventType "tourn"]
[EventCountry "ISR"]
[SourceTitle "playchess.com"]
[Source "ChessBase"]
[SourceQuality "1"]
[TimeControl "40/5400+30:1800+30"]

{[%evp 9,90,18,18,12,14,14,14,17,14,18,47,2,9,-58,0,-34,-32,-30,-31,-28,-14,-45,-43,-67,-55,-60,-52,-60,-8,-6,-6,-89,-87,-126,-112,-112,-110,-122,-100,-113,-87,-145,-145,-153,-137,-160,-132,-156,-141,-156,-153,-159,-159,-150,-22,-26,-19,-19,-18,-65,-72,-168,-160,-183,-149,-190,-151,-233,-178,-171,-158,-292,-292,-292,-292,-292,-292,-292,-235,-235,-235,-491,-491]} 1. d4 {[%emt 0:00:27]} Nf6 {[%emt 0:00:03]} 2. Bg5 {[%emt 0:03:16]} Ne4 {[%emt 0:00:10]} 3. Bf4 {[%emt 0:00:24]} d5 {[%emt 0:00:04]} 4. e3 {[%emt 0:01:08]} c5 {[%emt 0:00:04]} 5. Bd3 {[%emt 0:00:23]} Nf6 {[%emt 0:00:03]} 6. c3 {[%emt 0:00:40] A45: Trompowsky Attack.} Nc6 {[%emt 0:00:04]} 7. Nf3 {[%emt 0:02:38]} Bg4 {[%emt 0:00:44]} 8. Nbd2 {[%emt 0:01:47] The position is equal.} (8. dxc5 $2 e5 9. Bg5 e4 10. Bxe4 dxe4 11. Qxd8+ Kxd8 $19) 8... e6 {[%emt 0:00:04]} 9. O-O {[%emt 0:00:48]} Be7 {[%emt 0:00:03] [#]} 10. Rc1 $146 {[%emt 0:08:46]} (10. Qb3 $5 {[%cal Rb3b7]} Qb6 11. dxc5 Bxc5 12. Qc2 $11) ({Predecessor:} 10. Qb1 Bxf3 11. Nxf3 O-O 12. Ne5 g6 13. Rd1 Nxe5 14. Bxe5 Bd6 15. Bg3 Bxg3 16. hxg3 {1-0 (76) Petkov,M (2409)-Martinez Alcantara,J (2620) Chess.com INT 2020}) 10... O-O {[%emt 0:01:12]} 11. b3 {[%emt 0:04:44]} (11. h3 $11 Bh5 12. g4) 11... Rc8 {[%emt 0:03:36]} (11... Nh5 $15) 12. Qe1 {[%emt 0:09:07]} (12. h3 $5 {[%cal Rh3g4]} Bh5 13. Qe2 $11) 12... Nh5 {[%emt 0:04:31]} 13. Ne5 {[%emt 0:07:39]} Nxf4 {[%emt 0:00:29]} 14. exf4 {[%emt 0:00:20]} Bh5 {[%emt 0:03:13]} 15. Nxc6 {[%emt 0:06:13]} (15. dxc5 {looks sharper.} Bxc5 16. b4 Bb6 17. a4) 15... Rxc6 {[%emt 0:00:24]} 16. Qe5 {[%emt 0:00:34]} Bg6 {[%emt 0:09:27]} (16... g6 {is interesting.} 17. dxc5 Bxc5 18. b4 Bd6) 17. Bxg6 {[%emt 0:00:26]} hxg6 {[%emt 0:00:01]} 18. Nf3 {[%emt 0:04:07]} Qc7 {[%emt 0:06:02]} (18... Qb6 $15) 19. Qxc7 $1 $11 {[%emt 0:07:09]} Rxc7 {[%emt 0:00:02]} 20. Rfd1 {[%emt 0:06:38]} (20. c4 $1 $11) 20... Rfc8 $17 {[%emt 0:01:14]} 21. Rd3 {[%emt 0:00:33]} c4 {[%emt 0:04:44]} 22. bxc4 {[%emt 0:02:15]} Rxc4 {[%emt 0:00:01]} 23. Nd2 {[%emt 0:01:30]} R4c6 {[%emt 0:06:01]} 24. Kf1 {[%emt 0:06:22]} b5 {[%emt 0:05:28][%cal Bb7b5,Bb5b4][%mdl 32]} 25. Ke2 {[%emt 0:00:48]} (25. Rb1 $142) 25... b4 {[%emt 0:02:15]} 26. Nb1 {[%emt 0:00:16]} Bf6 {[%emt 0:01:34]} 27. Ke3 {[%emt 0:00:17]} Rc4 {[%emt 0:00:37]} 28. g4 {[%emt 0:10:43]} Bd8 {[%emt 0:01:23] Black is more active.} 29. Nd2 {[%emt 0:03:01]} R4c6 {[%emt 0:01:24][%cal Rb4c3]} 30. Nb3 {[%emt 0:02:13]} Bb6 {[%emt 0:00:50] Inhibits Nc5.} ({And not} 30... Rxc3 31. Rdxc3 bxc3 32. Nc5 $17) 31. Kd2 {[%emt 0:00:37]} Rc4 {[%emt 0:01:03]} (31... Bc7 $17 32. Rf3 bxc3+ 33. Ke2 c2) 32. cxb4 $11 {[%emt 0:00:19]} Rxc1 {[%emt 0:02:30][%mdl 64] [#] Remove Defender} 33. Nxc1 {[%emt 0:00:04][%mdl 4096] Endgame Black must now prevent Rc3. KRB-KRN} Rc4 {[%emt 0:00:14][%csl LRb4,LRd4]} 34. Nb3 {[%emt 0:03:02]} (34. Rb3 $11 {might be stronger.}) 34... Rxb4 $15 {[%emt 0:00:05]} 35. Kc3 {[%emt 0:01:59]} (35. Nc5 $17 {was called for.}) 35... Rc4+ {[%emt 0:01:16]} 36. Kb2 {[%emt 0:00:05]} a5 {[%emt 0:00:29]} 37. Ka3 {[%emt 0:03:46]} Bc7 {[%emt 0:04:16]} 38. h3 {[%emt 0:01:25]} (38. Kb2 $17 {was worth a try.}) 38... a4 {[%emt 0:04:23]} (38... Bxf4 39. Nxa5 Bd6+ 40. Kb2 Rb4+ 41. Nb3 $15) 39. Nd2 {[%emt 0:01:37]} Rc2 {[%emt 0:00:16] And now ...Bd6+ would win.} 40. Kxa4 {[%emt 0:01:03]} (40. f5 $17) 40... Bxf4 $19 {[%emt 0:00:15]} ({Stronger than} 40... Rxa2+ 41. Kb3 Ra1 42. Kb2 $17) 41. Nb3 {[%emt 0:05:58]} Rxa2+ {[%emt 0:00:09]} ({Worse is} 41... Rxf2 42. a3 $17) 42. Kb4 {[%emt 0:00:17]} Rxf2 {[%emt 0:00:11]} 43. Rc3 {[%emt 0:02:46]} Bd2 {[%emt 0:01:05]} 44. Nxd2 {[%emt 0:00:18]} Rxd2 {[%emt 0:00:02]} 45. Rc8+ $2 {[%emt 0:01:17] [#]} (45. Kc5) 45... Kh7 {[%emt 0:00:17] Weighted Error Value: White=0.31/Black=0.19 (very precise)} 0-1

[Event "Israeli Women Championship 2022"]
[Site "Yosiah Arad"]
[Date "2022.12.08"]
[Round "4.2"]
[White "Shvayger, Yuliya"]
[Black "Kochavi, Dana"]
[Result "1-0"]
[ECO "B11"]
[WhiteElo "2350"]
[BlackElo "1928"]
[Annotator "TA"]
[PlyCount "151"]
[EventDate "2022.12.05"]
[EventType "tourn"]
[EventCountry "ISR"]
[SourceTitle "playchess.com"]
[Source "ChessBase"]
[SourceQuality "1"]
[TimeControl "40/5400+30:1800+30"]

{[%evp 10,151,24,27,35,19,14,16,15,17,15,14,20,17,38,35,33,39,46,40,48,33,94,86,94,98,73,50,61,57,67,55,51,75,58,63,72,63,193,190,204,116,112,50,64,43,45,16,8,24,9,0,0,0,0,0,0,0,0,0,0,-1,21,15,26,12,64,7,39,45,104,101,97,97,95,62,59,0,41,0,0,0,0,0,41,41,97,112,147,154,154,161,275,276,265,269,264,260,372,277,479,314,316,308,303,279,299,298,675,670,683,585,516,466,750,757,834,816,986,861,29982,1212,1134,1154,1125,1088,951,919,801,789,1155,1099,1154,1155,972,1014,1126,1086,29977,29978,29978,5122,5122,810]} 1. e4 {[%emt 0:00:03]} c6 {[%emt 0:00:15]} 2. Nf3 {[%emt 0:00:45]} d5 {[%emt 0:00:04]} 3. Nc3 {[%emt 0:00:09]} dxe4 {[%emt 0:00:03]} 4. Nxe4 {[%emt 0:00:14]} Nf6 {[%emt 0:00:03]} 5. Qe2 {[%emt 0:00:20]} Nxe4 {[%emt 0:00:06]} 6. Qxe4 {[%emt 0:00:04]} Nd7 {[%emt 0:00:04] B11: Caro-Kann: Two Knights Variation.} 7. Bc4 {[%emt 0:02:24]} Nf6 {[%emt 0:00:05] [#]} 8. Ne5 $1 {[%emt 0:04:44][%csl Ge5][%cal Rc4f7]} e6 {[%emt 0:00:05] The position is equal.} 9. Qe2 {[%emt 0:00:10]} b5 {[%emt 0:01:11]} 10. Bb3 {[%emt 0:02:55]} Qc7 {[%emt 0:00:28]} 11. d4 {[%emt 0:01:08]} a6 {[%emt 0:00:47]} 12. O-O {[%emt 0:08:43]} Bd6 {[%emt 0:02:32]} 13. Bf4 {[%emt 0:02:11]} O-O {[%emt 0:01:26] [#]} 14. Rac1 $146 {[%emt 0:04:32]} ({Predecessor:} 14. c4 Nd7 15. c5 Bxe5 16. Bxe5 Nxe5 17. Qxe5 Qxe5 18. dxe5 a5 19. a4 Ba6 20. Rfd1 {1-0 (65) Melikyan,G (2238)-Balabayeva,K (2203) Chess.com INT 2022}) 14... Nd5 {[%emt 0:21:14]} 15. Bg3 {[%emt 0:00:22]} b4 {[%emt 0:00:35]} ({Black should play} 15... a5 $14) 16. c4 $16 {[%emt 0:03:59]} bxc3 {[%emt 0:00:33]} 17. bxc3 {[%emt 0:00:02]} c5 {[%emt 0:02:13]} 18. c4 {[%emt 0:20:46]} (18. dxc5 {feels hotter.} Qxc5 19. Rfd1 Bc7 20. Bxd5 exd5 21. c4) 18... Ne7 {[%emt 0:00:28]} 19. dxc5 {[%emt 0:00:52]} Qxc5 {[%emt 0:00:26]} 20. Nd3 {[%emt 0:02:59]} Qc7 {[%emt 0:01:31]} 21. Bxd6 {[%emt 0:00:03]} Qxd6 {[%emt 0:00:07]} 22. c5 {[%emt 0:00:04]} Qc7 {[%emt 0:00:06]} 23. Qe5 {[%emt 0:03:51]} Qa7 {[%emt 0:07:48]} (23... Ra7 $14) 24. c6 $18 {[%emt 0:01:22]} a5 {[%emt 0:00:31]} 25. Nf4 {[%emt 0:03:46]} ({Better is} 25. Nb2 $18) 25... a4 $16 {[%emt 0:01:34]} 26. Nh5 {[%emt 0:00:58]} Nf5 $14 {[%emt 0:01:43] Against c7} 27. Bc4 {[%emt 0:02:54] Strongly threatening Rfd1. White is much more active. The black rooks are badly placed.} Qd4 {[%emt 0:06:52] Inhibits Rfd1.} 28. Rfe1 {[%emt 0:00:50][%cal Bf1e1,Be1e5,Be5b5,Bb5b6][%mdl 32]} Qxe5 $1 {[%emt 0:00:38]} 29. Rxe5 {[%emt 0:00:02]} Ba6 {[%emt 0:00:12]} 30. Bxa6 {[%emt 0:04:43]} Rxa6 {[%emt 0:00:05]} 31. c7 {[%emt 0:30:05]} Rc8 {[%emt 0:00:16]} 32. Rb5 {[%emt 0:00:00] aiming for Rb8.} Raa8 {[%emt 0:07:53] Prevents Rb8.} 33. Rb6 {[%emt 0:00:00]} Ne7 {[%emt 0:02:02]} 34. Nf4 {[%emt 0:00:00]} g5 {[%emt 0:01:12]} 35. Nd3 {[%emt 0:00:00]} Nd5 {[%emt 0:00:10]} 36. Rb7 {[%emt 0:00:00]} Kg7 {[%emt 0:02:49]} 37. g3 {[%emt 0:00:00]} Ra6 {[%emt 0:09:12] Prevents Rc6.} ({Black should try} 37... a3 $11) 38. a3 {[%emt 0:00:00]} (38. Nb4 $14 Rb6 39. Rxb6 Nxb6 40. Na6) 38... Rd6 {[%emt 0:05:40]} (38... Rb6 $5 {[%cal Rb6b7]} 39. Ra7 (39. Rxb6 Nxb6 40. Nc5 Kf8 $11) 39... Kg6 $11) 39. Nb4 {[%emt 0:00:00]} Rd7 {[%emt 0:01:54] [#]} (39... Rb6 $14 40. Rxb6 Nxb6) 40. Na6 $1 $16 {[%emt 0:00:00]} Rd6 {[%emt 0:05:23] [#]} 41. Rb8 $1 {[%emt 0:31:20]} Ne7 {[%emt 0:30:09]} 42. Nb4 {[%emt 0:00:17]} Rd7 {[%emt 0:01:06]} 43. Rb7 {[%emt 0:03:13]} Nd5 $1 {[%emt 0:00:10]} 44. Na6 {[%emt 0:00:00]} Rd6 {[%emt 0:00:00]} 45. Ra7 {[%emt 0:00:00]} Rb6 {[%emt 0:00:00] Inhibits Nb4.} 46. Rc4 {[%emt 0:00:00]} Kg6 {[%emt 0:00:00]} 47. Nb4 $36 {[%emt 0:00:00][%mdl 2048] White has good play.} Kf5 {[%emt 0:00:00]} (47... Nxb4 $14 48. axb4 Kf6) 48. Rxa4 {[%emt 0:00:00] White leaves nothing to chance now.} Ke5 {[%emt 0:00:00]} 49. Ra5 {[%emt 0:00:00]} h6 {[%emt 0:04:08]} 50. Rcc5 {[%emt 0:00:00]} Rd6 {[%emt 0:00:55]} (50... f6 $142 51. Nxd5 exd5) 51. Rab5 $18 {[%emt 0:00:00]} Rd7 {[%emt 0:00:51]} 52. Na6 {[%emt 0:00:00]} Kd6 {[%emt 0:05:01]} 53. Rc1 {[%emt 0:00:00]} Ke5 {[%emt 0:02:10]} (53... Re7 {was worth a try.} 54. a4 Ree8) 54. a4 {[%emt 0:01:51]} Rd6 $2 {[%emt 0:00:39]} (54... Re7 55. Rc6 Rd7) 55. Nb4 {[%emt 0:01:12]} Rd7 {[%emt 0:01:02]} 56. Nxd5 {[%emt 0:00:58]} exd5 {[%emt 0:00:11][%mdl 4096] Endgame KRR-KRR} 57. Rbc5 {[%emt 0:00:07]} Kd6 {[%emt 0:01:52]} 58. Rc6+ {[%emt 0:00:27]} Ke5 $2 {[%emt 0:00:03]} (58... Ke7 59. Kf1 (59. Rxh6 Rcxc7 60. Re1+ Kf8 $16) 59... Rd6) 59. Kf1 {[%emt 0:00:23]} (59. Rxh6 Rcxc7 60. Re1+ Kd4 $14) 59... d4 {[%emt 0:00:33]} 60. Ke2 {[%emt 0:00:01]} ({Not} 60. Rxh6 Rcxc7 61. Re1+ Kd5 $14) 60... d3+ {[%emt 0:02:40]} 61. Kd2 {[%emt 0:00:01]} Ke4 {[%emt 0:00:49]} (61... Rd6 $142 62. Rxd6 Kxd6 63. Kxd3 Kd7) 62. a5 {[%emt 0:00:36][%cal Ba4a5,Ba5a6][%mdl 32] Threatens to win with a6.} ({Less strong is} 62. Rxh6 Rdxc7 63. f3+ Kxf3 64. Rf6+ Ke4 65. Re1+ Kd5 $11) 62... Kf3 {[%emt 0:01:19]} 63. a6 {[%emt 0:00:01] Black must now prevent a7.} Kxf2 {[%emt 0:00:29]} 64. a7 {[%emt 0:00:02] Intending Ra6 and mate.} h5 {[%emt 0:00:45]} 65. Rb6 {[%emt 0:01:51]} (65. Ra1 $142 Rdxc7 66. Rxc7 (66. a8=R Rxc6 67. Rxc8 Rxc8 $17) 66... Ra8 67. Kxd3 Kg2 68. Ra2+ Kh3 69. Rxf7 Kg4 70. Ra5) 65... Re8 {[%emt 0:01:19]} 66. c8=Q {[%emt 0:05:10]} Rxc8 {[%emt 0:00:06]} 67. Rxc8 {[%emt 0:00:00]} Rxa7 {[%emt 0:00:05]} 68. Kxd3 {[%emt 0:00:00]} Kg2 {[%emt 0:00:47]} 69. Rb2+ {[%emt 0:00:00]} Kh3 {[%emt 0:00:04]} 70. Ke4 {[%emt 0:00:00] Kf5 is the strong threat.} Kg4 {[%emt 0:00:21]} 71. Ke5 {[%emt 0:00:00]} Ra5+ {[%emt 0:00:41]} 72. Kf6 {[%emt 0:00:00] Hoping for Rc4+.} Rf5+ {[%emt 0:00:07]} 73. Kg7 {[%emt 0:00:00] White threatens Rc4+ and mate.} h4 {[%emt 0:00:55]} 74. gxh4 {[%emt 0:00:00]} Kxh4 {[%emt 0:07:57]} 75. Rh8+ {[%emt 0:04:30]} Kg4 {[%emt 0:00:00]} 76. Rf8 {[%emt 0:00:00] Weighted Error Value: White=0.17 (very precise) /Black=0.27 (precise)} 1-0